Workbook

Sheet Rating from tested data
A2: Product Information
A4: Company Name: | C4: ABC Company
A5: Trade Name: | C5: Model ABC
A6: Model Number: | C6: ABC 101
A7: Impeller Diameter: | C7: 18.25 | D7: in
A8: Number of Blades: | C8: 7
A11: Options
A13: Sone Type: | D13: Hemispherical
A14: Data Format: | D14: Full Octave
A15: Sound Power Spectrum: | D15: Generalized
A17: Test Data
A19: Test Number: | D19: 12345 | E19: S1
J21: Points of Operation
B22: Full Octave Sound Power Results (dB) | J22: Speed | K22: Static Pressure | L22: Total Pressure | M22: Fan Airflow
A23: Octave Band | B23: 1 | C23: 2 | D23: 3 | E23: 4 | F23: 5 | G23: 6 | H23: 7 | I23: 8 | J23: N | K23: PS | L23: PT | M23: Q
A24: Center Frequency, f (Hz) | B24: 63 | C24: 125 | D24: 250 | E24: 500 | F24: 1000 | G24: 2000 | H24: 4000 | I24: 8000 | J24: rpm | K24: in wg | L24: in wg | M24: cfm
A25: 1 | B25: 78.4 | C25: 79.1 | D25: 86 | E25: 82.7 | F25: 80.3 | G25: 79.1 | H25: 74.6 | I25: 67.2 | J25: 2000 | K25: 0
A26: 2 | B26: 75.1 | C26: 79.2 | D26: 83.6 | E26: 78.7 | F26: 76.2 | G26: 74.7 | H26: 69.6 | I26: 62.4 | J26: 2000 | K26: 1.56
A27: 3 | B27: 78.5 | C27: 80.9 | D27: 81.7 | E27: 75.4 | F27: 72.8 | G27: 72.5 | H27: 68.2 | I27: 63.5 | J27: 2000 | K27: 2.47
A28: 4 | B28: 78.9 | C28: 80.9 | D28: 81.7 | E28: 75 | F28: 72 | G28: 71.5 | H28: 67.2 | I28: 62.9 | J28: 2000 | K28: 2.63
B29: 80.2 | C29: 81.4 | D29: 82.4 | E29: 75.8 | F29: 72.4 | G29: 71.1 | H29: 66.9 | I29: 63.4 | J29: 2000 | K29: 2.75
A34: Published Sound Performance Ratings
A37: Company Name: | C37: ABC Company
A38: Trade Name: | C38: Model ABC
A39: Model Number: | C39: ABC 101
A40: Impeller Diameter: | C40: 18.25 | D40: in
A41: Number of Blades: | C41: 7
A44: Ratings
A46: New Speed | C46: 2500 | D46: rpm
A47: Static Pressure | C47: 2 | D47: in wg
B49: Full Octave Sound Power Results (dB)
B50: Octave Band
B51: 1 | C51: 2 | D51: 3 | E51: 4 | F51: 5 | G51: 6 | H51: 7 | I51: 8
B52: 63 | C52: 125 | D52: 250 | E52: 500 | F52: 1000 | G52: 2000 | H52: 4000 | I52: 8000 | J52: LWA (dB) | K52: Loudness (sones)
B53: ='Full Octave'!D97 -> 80.53780834 | C53: ='Full Octave'!E97 -> 80.53780834 | D53: ='Full Octave'!F97 -> 88.87626988 | E53: ='Full Octave'!G97 -> 92.1640493 | F53: ='Full Octave'!H97 -> 81.13562538 | G53: ='Full Octave'!I97 -> 80.09838884 | H53: ='Full Octave'!J97 -> 79.35464795 | I53: ='Full Octave'!K97 -> 71.95779296 | J53: =10*LOG10(10^((B53-26.2)/10)+10^((C53-16.1)/10)+10^((D53-8.6)/10)+10^((E53-3)/10)+10^((F53+0)/10)+10^((G53+1.2)/10)+10^((H53+1)/10)+10^((I53-1.1)/10)) -> 91.20557323 | K53: ='Full Octave'!C127 -> 30.61660357

Sheet Full Octave (hidden)
A1: AMCA Standard 301 Worksheet
A2: ='Rating from tested data'!D15 &" Sound Power Level Method" -> Generalized Sound Power Level Method
A4: Comparison Data
B6: Company: | C6: =IF(ISTEXT('Rating from tested data'!C37),'Rating from tested data'!C37,"") -> ABC Company
B7: Model: | C7: =IF(ISTEXT('Rating from tested data'!C39),'Rating from tested data'!C39,"") -> ABC 101
B8: Comparison ID: | C8: =IF(ISTEXT('Rating from tested data'!#REF!),'Rating from tested data'!#REF!,"") -> 
B9: Impeller Diameter (Dc): | D9: =IF('Rating from tested data'!D40="mm", 'Rating from tested data'!C40/25.4, 'Rating from tested data'!C40) -> 18.25 | E9: inch
C11: Sound Power Levels (dB) | M11: Speed | N11: Static Pressure
B12: Octave Band | C12: 1 | D12: 2 | E12: 3 | F12: 4 | G12: 5 | H12: 6 | I12: 7 | J12: 8 | M12: N | N12: Ps
B13: Center Freq., f (Hz) | C13: 63 | D13: 125 | E13: 250 | F13: 500 | G13: 1000 | H13: 2000 | I13: 4000 | J13: 8000 | K13: LWA (dB) | L13: Loudness (sones) | M13: rpm | N13: ='Rating from tested data'!D47 -> in wg
B14: Catalog Point | M14: =IF(ISNUMBER('Rating from tested data'!C46),'Rating from tested data'!C46,"-") -> 2500 | N14: =IF(ISNUMBER('Rating from tested data'!C47),'Rating from tested data'!C47,"-") -> 2
A16: Change the comparison data to IP unit
M18: Points of Operation
C19: Sound Power Levels (dB) | M19: Speed | N19: Static Pressure | O19: Total Pressure | P19: Fan Airflow
B20: Octave Band | C20: 1 | D20: 2 | E20: 3 | F20: 4 | G20: 5 | H20: 6 | I20: 7 | J20: 8 | M20: N | N20: Ps | O20: PT | P20: Q
B21: Center Freq., f (Hz) | C21: 63 | D21: 125 | E21: 250 | F21: 500 | G21: 1000 | H21: 2000 | I21: 4000 | J21: 8000 | K21: LWA (dB) | L21: Loudness (sones) | M21: rpm | N21: in wg. | O21: in wg. | P21: cfm
B22: Comparison Data | M22: =M14 -> 2500 | N22: =IF((ISNUMBER(N14)), (IF(N13="mm Aq", N14/25.4,IF(N13="mm Hg", N14*0.535, (IF(N13="Pa", N14*0.00401, N14))))),"-") -> 2
A25: Base Test Conditions and Results
B27: Test Number: | D27: =IF(ISTEXT('Rating from tested data'!D19),'Rating from tested data'!D19,"") -> 
B28: Model: | D28: =IF(ISTEXT('Rating from tested data'!C6),'Rating from tested data'!C6,"") -> ABC 101
B29: Speed: | D29: =AVERAGE('Rating from tested data'!J25:J30) -> 2000 | E29: rpm
B30: Impeller Diameter (D): | D30: =IF('Rating from tested data'!D7="mm",'Rating from tested data'!C7/25.4, 'Rating from tested data'!C7) -> 18.25 | E30: in
B31: Number of Blades (NB): | D31: ='Rating from tested data'!C8 -> 7
B32: Blade pass frequency (fbp) | D32: =D29*D31/60 -> 233.3333333 | E32: Hz
C34: Sound Power Results, Lwm (dB) | L34: Speed | M34: Static Pressure | N34: Total Pressure | O34: Fan Airflow
C35: Octave Band | D35: 1 | E35: 2 | F35: 3 | G35: 4 | H35: 5 | I35: 6 | J35: 7 | K35: 8 | L35: N (rpm) | M35: Ps (in. wg) | N35: PT (in. wg) | O35: Q (cfm)
C36: Center Freq., fc (Hz) | D36: 63 | E36: 125 | F36: 250 | G36: 500 | H36: 1000 | I36: 2000 | J36: 4000 | K36: 8000
C37: Lower frequency (Hz) | D37: 45 | E37: 90 | F37: 180 | G37: 355 | H37: 710 | I37: 1400 | J37: 2800 | K37: 5600
C38: Upper frequency (Hz) | D38: 90 | E38: 180 | F38: 355 | G38: 710 | H38: 1400 | I38: 2800 | J38: 5600 | K38: 11200
B39: Determination # | C39: 1 | D39: =IF(NOT(ISBLANK('Rating from tested data'!B25)),'Rating from tested data'!B25,"-") -> 78.4 | E39: =IF(NOT(ISBLANK('Rating from tested data'!C25)),'Rating from tested data'!C25,"-") -> 79.1 | F39: =IF(NOT(ISBLANK('Rating from tested data'!D25)),'Rating from tested data'!D25,"-") -> 86 | G39: =IF(NOT(ISBLANK('Rating from tested data'!E25)),'Rating from tested data'!E25,"-") -> 82.7 | H39: =IF(NOT(ISBLANK('Rating from tested data'!F25)),'Rating from tested data'!F25,"-") -> 80.3 | I39: =IF(NOT(ISBLANK('Rating from tested data'!G25)),'Rating from tested data'!G25,"-") -> 79.1 | J39: =IF(NOT(ISBLANK('Rating from tested data'!H25)),'Rating from tested data'!H25,"-") -> 74.6 | K39: =IF(NOT(ISBLANK('Rating from tested data'!I25)),'Rating from tested data'!I25,"-") -> 67.2 | L39: =IF(ISNUMBER('Rating from tested data'!J25),'Rating from tested data'!J25,"-") -> 2000 | M39: =IF(ISNUMBER('Rating from tested data'!K25), (IF('Rating from tested data'!$K$24="mm Aq", ('Rating from tested data'!K25)/25.4, IF('Rating from tested data'!$K$24="mm Hg", ('Rating from tested data'!K25)*0.535,(IF('Rating from tested data'!$K$24="Pa", ('Rating from tested data'!K25)*0.00401, 'Rating from tested data'!K25))))),"-") -> 0 | N39: =IF(ISNUMBER('Rating from tested data'!L25), (IF('Rating from tested data'!$L$24="mm Hg", 'Rating from tested data'!L25/25.4, IF('Rating from tested data'!$L$24="mm Hg", 'Rating from tested data'!L25*0.535,IF('Rating from tested data'!$L$24="Pa", 'Rating from tested data'!L25*0.00401, 'Rating from tested data'!L25)))),"-") -> - | O39: =IF(ISNUMBER('Rating from tested data'!M25), (IF('Rating from tested data'!$M$24="m3/min", 'Rating from tested data'!M25*35.31, (IF('Rating from tested data'!$M$24="m3/sec", 'Rating from tested data'!M25*35.31*60, 'Rating from tested data'!M25)))),"-") -> -
C40: 2 | D40: =IF(NOT(ISBLANK('Rating from tested data'!B26)),'Rating from tested data'!B26,"-") -> 75.1 | E40: =IF(NOT(ISBLANK('Rating from tested data'!C26)),'Rating from tested data'!C26,"-") -> 79.2 | F40: =IF(NOT(ISBLANK('Rating from tested data'!D26)),'Rating from tested data'!D26,"-") -> 83.6 | G40: =IF(NOT(ISBLANK('Rating from tested data'!E26)),'Rating from tested data'!E26,"-") -> 78.7 | H40: =IF(NOT(ISBLANK('Rating from tested data'!F26)),'Rating from tested data'!F26,"-") -> 76.2 | I40: =IF(NOT(ISBLANK('Rating from tested data'!G26)),'Rating from tested data'!G26,"-") -> 74.7 | J40: =IF(NOT(ISBLANK('Rating from tested data'!H26)),'Rating from tested data'!H26,"-") -> 69.6 | K40: =IF(NOT(ISBLANK('Rating from tested data'!I26)),'Rating from tested data'!I26,"-") -> 62.4 | L40: =IF(ISNUMBER('Rating from tested data'!J26),'Rating from tested data'!J26,"-") -> 2000 | M40: =IF(ISNUMBER('Rating from tested data'!K26), (IF('Rating from tested data'!$K$24="mm Aq", ('Rating from tested data'!K26)/25.4, IF('Rating from tested data'!$K$24="mm Hg", ('Rating from tested data'!K26)*0.535,(IF('Rating from tested data'!$K$24="Pa", ('Rating from tested data'!K26)*0.00401, 'Rating from tested data'!K26))))),"-") -> 1.56 | N40: =IF(ISNUMBER('Rating from tested data'!L26), (IF('Rating from tested data'!$L$24="mm Hg", 'Rating from tested data'!L26/25.4, IF('Rating from tested data'!$L$24="mm Hg", 'Rating from tested data'!L26*0.535,IF('Rating from tested data'!$L$24="Pa", 'Rating from tested data'!L26*0.00401, 'Rating from tested data'!L26)))),"-") -> - | O40: =IF(ISNUMBER('Rating from tested data'!M26), (IF('Rating from tested data'!$M$24="m3/min", 'Rating from tested data'!M26*35.31, (IF('Rating from tested data'!$M$24="m3/sec", 'Rating from tested data'!M26*35.31*60, 'Rating from tested data'!M26)))),"-") -> -
C41: 3 | D41: =IF(NOT(ISBLANK('Rating from tested data'!B27)),'Rating from tested data'!B27,"-") -> 78.5 | E41: =IF(NOT(ISBLANK('Rating from tested data'!C27)),'Rating from tested data'!C27,"-") -> 80.9 | F41: =IF(NOT(ISBLANK('Rating from tested data'!D27)),'Rating from tested data'!D27,"-") -> 81.7 | G41: =IF(NOT(ISBLANK('Rating from tested data'!E27)),'Rating from tested data'!E27,"-") -> 75.4 | H41: =IF(NOT(ISBLANK('Rating from tested data'!F27)),'Rating from tested data'!F27,"-") -> 72.8 | I41: =IF(NOT(ISBLANK('Rating from tested data'!G27)),'Rating from tested data'!G27,"-") -> 72.5 | J41: =IF(NOT(ISBLANK('Rating from tested data'!H27)),'Rating from tested data'!H27,"-") -> 68.2 | K41: =IF(NOT(ISBLANK('Rating from tested data'!I27)),'Rating from tested data'!I27,"-") -> 63.5 | L41: =IF(ISNUMBER('Rating from tested data'!J27),'Rating from tested data'!J27,"-") -> 2000 | M41: =IF(ISNUMBER('Rating from tested data'!K27), (IF('Rating from tested data'!$K$24="mm Aq", ('Rating from tested data'!K27)/25.4, IF('Rating from tested data'!$K$24="mm Hg", ('Rating from tested data'!K27)*0.535,(IF('Rating from tested data'!$K$24="Pa", ('Rating from tested data'!K27)*0.00401, 'Rating from tested data'!K27))))),"-") -> 2.47 | N41: =IF(ISNUMBER('Rating from tested data'!L27), (IF('Rating from tested data'!$L$24="mm Hg", 'Rating from tested data'!L27/25.4, IF('Rating from tested data'!$L$24="mm Hg", 'Rating from tested data'!L27*0.535,IF('Rating from tested data'!$L$24="Pa", 'Rating from tested data'!L27*0.00401, 'Rating from tested data'!L27)))),"-") -> - | O41: =IF(ISNUMBER('Rating from tested data'!M27), (IF('Rating from tested data'!$M$24="m3/min", 'Rating from tested data'!M27*35.31, (IF('Rating from tested data'!$M$24="m3/sec", 'Rating from tested data'!M27*35.31*60, 'Rating from tested data'!M27)))),"-") -> -
C42: 4 | D42: =IF(NOT(ISBLANK('Rating from tested data'!B28)),'Rating from tested data'!B28,"-") -> 78.9 | E42: =IF(NOT(ISBLANK('Rating from tested data'!C28)),'Rating from tested data'!C28,"-") -> 80.9 | F42: =IF(NOT(ISBLANK('Rating from tested data'!D28)),'Rating from tested data'!D28,"-") -> 81.7 | G42: =IF(NOT(ISBLANK('Rating from tested data'!E28)),'Rating from tested data'!E28,"-") -> 75 | H42: =IF(NOT(ISBLANK('Rating from tested data'!F28)),'Rating from tested data'!F28,"-") -> 72 | I42: =IF(NOT(ISBLANK('Rating from tested data'!G28)),'Rating from tested data'!G28,"-") -> 71.5 | J42: =IF(NOT(ISBLANK('Rating from tested data'!H28)),'Rating from tested data'!H28,"-") -> 67.2 | K42: =IF(NOT(ISBLANK('Rating from tested data'!I28)),'Rating from tested data'!I28,"-") -> 62.9 | L42: =IF(ISNUMBER('Rating from tested data'!J28),'Rating from tested data'!J28,"-") -> 2000 | M42: =IF(ISNUMBER('Rating from tested data'!K28), (IF('Rating from tested data'!$K$24="mm Aq", ('Rating from tested data'!K28)/25.4, IF('Rating from tested data'!$K$24="mm Hg", ('Rating from tested data'!K28)*0.535,(IF('Rating from tested data'!$K$24="Pa", ('Rating from tested data'!K28)*0.00401, 'Rating from tested data'!K28))))),"-") -> 2.63 | N42: =IF(ISNUMBER('Rating from tested data'!L28), (IF('Rating from tested data'!$L$24="mm Hg", 'Rating from tested data'!L28/25.4, IF('Rating from tested data'!$L$24="mm Hg", 'Rating from tested data'!L28*0.535,IF('Rating from tested data'!$L$24="Pa", 'Rating from tested data'!L28*0.00401, 'Rating from tested data'!L28)))),"-") -> - | O42: =IF(ISNUMBER('Rating from tested data'!M28), (IF('Rating from tested data'!$M$24="m3/min", 'Rating from tested data'!M28*35.31, (IF('Rating from tested data'!$M$24="m3/sec", 'Rating from tested data'!M28*35.31*60, 'Rating from tested data'!M28)))),"-") -> -
C43: 5 | D43: =IF(NOT(ISBLANK('Rating from tested data'!B29)),'Rating from tested data'!B29,"-") -> 80.2 | E43: =IF(NOT(ISBLANK('Rating from tested data'!C29)),'Rating from tested data'!C29,"-") -> 81.4 | F43: =IF(NOT(ISBLANK('Rating from tested data'!D29)),'Rating from tested data'!D29,"-") -> 82.4 | G43: =IF(NOT(ISBLANK('Rating from tested data'!E29)),'Rating from tested data'!E29,"-") -> 75.8 | H43: =IF(NOT(ISBLANK('Rating from tested data'!F29)),'Rating from tested data'!F29,"-") -> 72.4 | I43: =IF(NOT(ISBLANK('Rating from tested data'!G29)),'Rating from tested data'!G29,"-") -> 71.1 | J43: =IF(NOT(ISBLANK('Rating from tested data'!H29)),'Rating from tested data'!H29,"-") -> 66.9 | K43: =IF(NOT(ISBLANK('Rating from tested data'!I29)),'Rating from tested data'!I29,"-") -> 63.4 | L43: =IF(ISNUMBER('Rating from tested data'!J29),'Rating from tested data'!J29,"-") -> 2000 | M43: =IF(ISNUMBER('Rating from tested data'!K29), (IF('Rating from tested data'!$K$24="mm Aq", ('Rating from tested data'!K29)/25.4, IF('Rating from tested data'!$K$24="mm Hg", ('Rating from tested data'!K29)*0.535,(IF('Rating from tested data'!$K$24="Pa", ('Rating from tested data'!K29)*0.00401, 'Rating from tested data'!K29))))),"-") -> 2.75 | N43: =IF(ISNUMBER('Rating from tested data'!L29), (IF('Rating from tested data'!$L$24="mm Hg", 'Rating from tested data'!L29/25.4, IF('Rating from tested data'!$L$24="mm Hg", 'Rating from tested data'!L29*0.535,IF('Rating from tested data'!$L$24="Pa", 'Rating from tested data'!L29*0.00401, 'Rating from tested data'!L29)))),"-") -> - | O43: =IF(ISNUMBER('Rating from tested data'!M29), (IF('Rating from tested data'!$M$24="m3/min", 'Rating from tested data'!M29*35.31, (IF('Rating from tested data'!$M$24="m3/sec", 'Rating from tested data'!M29*35.31*60, 'Rating from tested data'!M29)))),"-") -> -
C44: 6 | D44: =IF(NOT(ISBLANK('Rating from tested data'!B30)),'Rating from tested data'!B30,"-") -> - | E44: =IF(NOT(ISBLANK('Rating from tested data'!C30)),'Rating from tested data'!C30,"-") -> - | F44: =IF(NOT(ISBLANK('Rating from tested data'!D30)),'Rating from tested data'!D30,"-") -> - | G44: =IF(NOT(ISBLANK('Rating from tested data'!E30)),'Rating from tested data'!E30,"-") -> - | H44: =IF(NOT(ISBLANK('Rating from tested data'!F30)),'Rating from tested data'!F30,"-") -> - | I44: =IF(NOT(ISBLANK('Rating from tested data'!G30)),'Rating from tested data'!G30,"-") -> - | J44: =IF(NOT(ISBLANK('Rating from tested data'!H30)),'Rating from tested data'!H30,"-") -> - | K44: =IF(NOT(ISBLANK('Rating from tested data'!I30)),'Rating from tested data'!I30,"-") -> - | L44: =IF(ISNUMBER('Rating from tested data'!J30),'Rating from tested data'!J30,"-") -> - | M44: =IF(ISNUMBER('Rating from tested data'!K30), (IF('Rating from tested data'!$K$24="mm Aq", ('Rating from tested data'!K30)/25.4, IF('Rating from tested data'!$K$24="mm Hg", ('Rating from tested data'!K30)*0.535,(IF('Rating from tested data'!$K$24="Pa", ('Rating from tested data'!K30)*0.00401, 'Rating from tested data'!K30))))),"-") -> - | N44: =IF(ISNUMBER('Rating from tested data'!L30), (IF('Rating from tested data'!$L$24="mm Hg", 'Rating from tested data'!L30/25.4, IF('Rating from tested data'!$L$24="mm Hg", 'Rating from tested data'!L30*0.535,IF('Rating from tested data'!$L$24="Pa", 'Rating from tested data'!L30*0.00401, 'Rating from tested data'!L30)))),"-") -> - | O44: =IF(ISNUMBER('Rating from tested data'!M30), (IF('Rating from tested data'!$M$24="m3/min", 'Rating from tested data'!M30*35.31, (IF('Rating from tested data'!$M$24="m3/sec", 'Rating from tested data'!M30*35.31*60, 'Rating from tested data'!M30)))),"-") -> -
A47: Calculations
B50: Convert comparison performance point to test speed and impeller diameter using the fan laws to determine which data point(s) to use.
C52: Psc' = Psc · (N / Nc)² · (d / dc)²
C53: Psc'= | D53: =N22*(AVERAGE(L39:L44)/M22)^2*(D30/D9)^2 -> 1.28 | E53: in wg
B54: Determine the Blade Passage Frequency (BPF) for the test speed.
C56: BPF = (N · NB) / 60
C58: Det. | D58: N | E58: Ps | F58: BPF | G58: Pt | H58: Q
B59: PC' | C59: - | D59: =AVERAGE(L39:L44) -> 2000 | E59: =D53 -> 1.28 | F59: =M22/60*D31 -> 291.6666667
B60: P0 | C60: =IF(E59<SMALL($M$39:$M$44,1),1,IF(E59>LARGE($M$39:$M$44,1),MATCH(LARGE($M$39:$M$44,1),$M$39:$M$44,0)-1,IF(E59=SMALL($M$39:$M$44,1),MATCH(E59,$M$39:$M$44,0),MATCH(E59,$M$39:$M$44,1)))) -> 1 | D60: =INDEX($L$39:$L$44,$C60,1) -> 2000 | E60: =INDEX($M$39:$M$44,$C60,1) -> 0 | F60: =D60/60*$D$31 -> 233.3333333 | G60: =INDEX($N$39:$N$44,$C60,1) -> - | H60: =INDEX($O$39:$O$44,$C60,1) -> -
B61: P1 | C61: =IF(E59>INDEX(M39:M44,C60,1),C60+1,IF(E59<INDEX(M39:M44,C60,1),C60+1,C60)) -> 2 | D61: =INDEX($L$39:$L$44,$C61,1) -> 2000 | E61: =INDEX($M$39:$M$44,$C61,1) -> 1.56 | F61: =D61/60*$D$31 -> 233.3333333 | G61: =INDEX($N$39:$N$44,$C61,1) -> - | H61: =INDEX($O$39:$O$44,$C61,1) -> -
B64: For P0 and P1, the measured sound power level for each octave band.
C66: Extrapolated Left | L66: Extrapolated Right
B67: Octave Band | D67: 1 | E67: 2 | F67: 3 | G67: 4 | H67: 5 | I67: 6 | J67: 7 | K67: 8
B68: Center Freq., f (Hz) | D68: 63 | E68: 125 | F68: 250 | G68: 500 | H68: 1000 | I68: 2000 | J68: 4000 | K68: 8000
B69: Lower f (Hz) | D69: 45 | E69: 90 | F69: 180 | G69: 355 | H69: 710 | I69: 1400 | J69: 2800 | K69: 5600
B70: Upper f (Hz) | D70: 90 | E70: 180 | F70: 355 | G70: 710 | H70: 1400 | I70: 2800 | J70: 5600 | K70: 11200
B71: Postion of Blade Pass Frequency | D71: =IF(AND($F$60>D69,$F$60<=D70),"Yes","No") -> No | E71: =IF(AND($F$60>E69,$F$60<=E70),"Yes","No") -> No | F71: Yes | G71: No | H71: No | I71: No | J71: No | K71: No
B72: Test Lw0 (dB) | D72: =INDEX($D$39:$K$44,$C$60,D67) -> 78.4 | E72: 79.1 | F72: 86 | G72: 82.7 | H72: 80.3 | I72: 79.1 | J72: 74.6 | K72: 67.2
B73: X0 | C73: 0 | D73: =10*LOG(D68/$D$60)+20 -> 4.983105538 | E73: =10*LOG(E68/$D$60)+20 -> 7.958800173 | F73: 10.96910013 | G73: 13.97940009 | H73: 16.98970004 | I73: 20 | J73: 23.01029996 | K73: 26.02059991 | L73: =IF(K74<J74,((K73-J73)/(K74-J74))*(L74-K74)+K73,K73+ABS(K73-J73)) -> 48.36686972
B74: =IF('Rating from tested data'!$D$15="Generalized","Lwg0 (dB)","Lwk0 (dB)") -> Lwg0 (dB) | C74: =D74 -> 66.1321991 | D74: =IF('Rating from tested data'!$D$15="Generalized",D72-50*LOG10($D$60/1000)-70*LOG10($D$30/20),D72-10*LOG10($H$60)-20*LOG10($G$60)) -> 66.1321991 | E74: =IF('Rating from tested data'!$D$15="Generalized",E72-50*LOG10($D$60/1000)-70*LOG10($D$30/20),E72-10*LOG10($H$60)-20*LOG10($G$60)) -> 66.8321991 | F74: =IF('Rating from tested data'!$D$15="Generalized",F72-50*LOG10($D$60/1000)-70*LOG10($D$30/20),F72-10*LOG10($H$60)-20*LOG10($G$60)) -> 73.7321991 | G74: =IF('Rating from tested data'!$D$15="Generalized",G72-50*LOG10($D$60/1000)-70*LOG10($D$30/20),G72-10*LOG10($H$60)-20*LOG10($G$60)) -> 70.4321991 | H74: =IF('Rating from tested data'!$D$15="Generalized",H72-50*LOG10($D$60/1000)-70*LOG10($D$30/20),H72-10*LOG10($H$60)-20*LOG10($G$60)) -> 68.0321991 | I74: =IF('Rating from tested data'!$D$15="Generalized",I72-50*LOG10($D$60/1000)-70*LOG10($D$30/20),I72-10*LOG10($H$60)-20*LOG10($G$60)) -> 66.8321991 | J74: =IF('Rating from tested data'!$D$15="Generalized",J72-50*LOG10($D$60/1000)-70*LOG10($D$30/20),J72-10*LOG10($H$60)-20*LOG10($G$60)) -> 62.3321991 | K74: =IF('Rating from tested data'!$D$15="Generalized",K72-50*LOG10($D$60/1000)-70*LOG10($D$30/20),K72-10*LOG10($H$60)-20*LOG10($G$60)) -> 54.9321991 | L74: =IF(K74<J74,0,((K74-J74)/(K73-J73)*(L73-J73)+J74)) -> 0
B75: Test Lw1 (dB) | D75: =INDEX($D$39:$K$44,$C$61,D67) -> 75.1 | E75: 79.2 | F75: 83.6 | G75: 78.7 | H75: 76.2 | I75: 74.7 | J75: 69.6 | K75: 62.4
B76: X1 | C76: 0 | D76: =10*LOG(D68/$D$61)+20 -> 4.983105538 | E76: =10*LOG(E68/$D$61)+20 -> 7.958800173 | F76: 10.96910013 | G76: 13.97940009 | H76: 16.98970004 | I76: 20 | J76: 23.01029996 | K76: 26.02059991 | L76: =IF(K77<J77,((K76-J76)/(K77-J77))*(L77-K77)+K76,K76+ABS(K76-J76)) -> 46.9807328
B77: =IF('Rating from tested data'!$D$15="Generalized","Lwg1 (dB)","Lwk1 (dB)") -> Lwg1 (dB) | C77: =D77 -> 62.8321991 | D77: =IF('Rating from tested data'!$D$15="Generalized",D75-50*LOG10($D$61/1000)-70*LOG10($D$30/20),D75-10*LOG10($H$61)-20*LOG10($G$61)) -> 62.8321991 | E77: =IF('Rating from tested data'!$D$15="Generalized",E75-50*LOG10($D$61/1000)-70*LOG10($D$30/20),E75-10*LOG10($H$61)-20*LOG10($G$61)) -> 66.9321991 | F77: =IF('Rating from tested data'!$D$15="Generalized",F75-50*LOG10($D$61/1000)-70*LOG10($D$30/20),F75-10*LOG10($H$61)-20*LOG10($G$61)) -> 71.3321991 | G77: =IF('Rating from tested data'!$D$15="Generalized",G75-50*LOG10($D$61/1000)-70*LOG10($D$30/20),G75-10*LOG10($H$61)-20*LOG10($G$61)) -> 66.4321991 | H77: =IF('Rating from tested data'!$D$15="Generalized",H75-50*LOG10($D$61/1000)-70*LOG10($D$30/20),H75-10*LOG10($H$61)-20*LOG10($G$61)) -> 63.9321991 | I77: =IF('Rating from tested data'!$D$15="Generalized",I75-50*LOG10($D$61/1000)-70*LOG10($D$30/20),I75-10*LOG10($H$61)-20*LOG10($G$61)) -> 62.4321991 | J77: =IF('Rating from tested data'!$D$15="Generalized",J75-50*LOG10($D$61/1000)-70*LOG10($D$30/20),J75-10*LOG10($H$61)-20*LOG10($G$61)) -> 57.3321991 | K77: =IF('Rating from tested data'!$D$15="Generalized",K75-50*LOG10($D$61/1000)-70*LOG10($D$30/20),K75-10*LOG10($H$61)-20*LOG10($G$61)) -> 50.1321991 | L77: =IF(K77<J77,0,((K77-J77)/(K76-J76)*(L76-J76)+J77)) -> 0
B79: Blade Pass Frequency | D79: X = | E79: =INDEX(D73:K73,MATCH("Yes",D71:K71,0)) -> 10.96910013 | F79: & | G79: LWG0 = | H79: =INDEX(D74:K74,MATCH("Yes",D71:K71,0)) -> 73.7321991
B81: Using Comparison Data
B83: Octave Band | D83: 1 | E83: 2 | F83: 3 | G83: 4 | H83: 5 | I83: 6 | J83: 7 | K83: 8
B84: Center Freq., f (Hz) | D84: 63 | E84: 125 | F84: 250 | G84: 500 | H84: 1000 | I84: 2000 | J84: 4000 | K84: 8000
B85: Lower f (Hz) | D85: 45 | E85: 90 | F85: 180 | G85: 355 | H85: 710 | I85: 1400 | J85: 2800 | K85: 5600
B86: Upper f (Hz) | D86: 90 | E86: 180 | F86: 355 | G86: 710 | H86: 1400 | I86: 2800 | J86: 5600 | K86: 11200
B87: Postion of Blade Pass Frequency | D87: =IF(AND($D$32>=D85,$D$32<=D86),"Yes","No") -> No | E87: =IF(AND($D$32>=E85,$D$32<=E86),"Yes","No") -> No | F87: Yes | G87: No | H87: No | I87: No | J87: No | K87: No
B88: Xc | D88: =10*LOG10(D84/$M$22)+20 -> 4.014005408 | E88: =10*LOG10(E84/$M$22)+20 -> 6.989700043 | F88: 10 | G88: 13.01029996 | H88: 16.02059991 | I88: 19.03089987 | J88: 22.04119983 | K88: 25.05149978
B89: Interpolation Index | D89: =IF(D$88<0, 1, IF(D$88>$L73,9,MATCH(D88,$C73:$L73,1)-1)) -> 0 | E89: 1 | F89: 2 | G89: 3 | H89: 4 | I89: 5 | J89: 6 | K89: 7
B90: =IF('Rating from tested data'!$D$15="Generalized", "Inter Lwgc0", "Inter Lwkc0") -> Inter Lwgc0 | D90: =(D$88-INDEX($C$73:$L$73,D$89))/(INDEX($C$73:$L$73,D$89+1)-INDEX($C$73:$L$73,D$89))*(INDEX($C$74:$L$74,D$89+1)-INDEX($C$74:$L$74,D$89))+INDEX($C$74:$L$74,D$89) -> 66.1321991 | E90: 66.1321991 | F90: 67.31236929 | G90: 78.41089524 | H90: 68.19456181 | I90: 66.40482653 | J90: 66.01851281 | K90: 59.28087552
B91: =IF('Rating from tested data'!$D$15="Generalized", "BPF Lwgc0 (dB)", "BPF Lwkc0 (dB)") -> BPF Lwgc0 (dB) | D91: =IF(D87="Yes",D74,"") ->  | F91: 73.7321991
B92: =IF('Rating from tested data'!$D$15="Generalized","Lwgc0 (dB)","Lwkc0 (dB)") -> Lwgc0 (dB) | D92: =MAX(D90,D91) -> 66.1321991 | E92: =MAX(E90,E91) -> 66.1321991 | F92: =MAX(F90,F91) -> 73.7321991 | G92: 78.41089524 | H92: 68.19456181 | I92: 66.40482653 | J92: 66.01851281 | K92: 59.28087552
B93: =IF('Rating from tested data'!$D$15="Generalized", "Inter Lwgc1", "Inter Lwkc1") -> Inter Lwgc1 | D93: =(D$88-INDEX($C$76:$L$76,D$89))/(INDEX($C$76:$L$76,D$89+1)-INDEX($C$76:$L$76,D$89))*(INDEX($C$77:$L$77,D$89+1)-INDEX($C$77:$L$77,D$89))+INDEX($C$77:$L$77,D$89) -> 62.8321991 | E93: 62.8321991 | F93: 69.74462454 | G93: 74.31571548 | H93: 63.10964676 | I93: 62.23701934 | J93: 61.41509124 | K93: 53.87403238
B94: =IF('Rating from tested data'!$D$15="Generalized","BPF Lwgc1 (dB)","BPF Lwkc1 (dB)") -> BPF Lwgc1 (dB) | D94: =IF(D87="Yes",D77,"") ->  | F94: 71.3321991
B95: =IF('Rating from tested data'!$D$15="Generalized","Lwgc1 (dB)","Lwkc1 (dB)") -> Lwgc1 (dB) | D95: =MAX(D93,D94) -> 62.8321991 | E95: =MAX(E93,E94) -> 62.8321991 | F95: 71.3321991 | G95: 74.31571548 | H95: 63.10964676 | I95: 62.23701934 | J95: 61.41509124 | K95: 53.87403238
B96: =IF('Rating from tested data'!$D$15="Generalized","Lwgc (dB)","Lwkc (dB)") -> Lwgc (dB) | D96: =IF(NOT($C$60=$C$61),((D95-D92)/($E$61-$E$60))*($E$59-$E$60)+D92,D92) -> 63.42450679 | E96: =IF(NOT($C$60=$C$61),((E95-E92)/($E$61-$E$60))*($E$59-$E$60)+E92,E92) -> 63.42450679 | F96: 71.76296833 | G96: 75.05074775 | H96: 64.02232382 | I96: 62.98508729 | J96: 62.24134639 | K96: 54.84449141
B97: LWC (dB) | D97: =IF('Rating from tested data'!$D$15="Generalized",D$96+50*LOG10($M$22/1000)+70*LOG10($D$9/20),D$96+10*LOG10($M$22)+20*LOG10($O$22)) -> 80.53780834 | E97: =IF('Rating from tested data'!$D$15="Generalized",E$96+50*LOG10($M$22/1000)+70*LOG10($D$9/20),E$96+10*LOG10($M$22)+20*LOG10($O$22)) -> 80.53780834 | F97: =IF('Rating from tested data'!$D$15="Generalized",F$96+50*LOG10($M$22/1000)+70*LOG10($D$9/20),F$96+10*LOG10($M$22)+20*LOG10($O$22)) -> 88.87626988 | G97: =IF('Rating from tested data'!$D$15="Generalized",G$96+50*LOG10($M$22/1000)+70*LOG10($D$9/20),G$96+10*LOG10($M$22)+20*LOG10($O$22)) -> 92.1640493 | H97: =IF('Rating from tested data'!$D$15="Generalized",H$96+50*LOG10($M$22/1000)+70*LOG10($D$9/20),H$96+10*LOG10($M$22)+20*LOG10($O$22)) -> 81.13562538 | I97: =IF('Rating from tested data'!$D$15="Generalized",I$96+50*LOG10($M$22/1000)+70*LOG10($D$9/20),I$96+10*LOG10($M$22)+20*LOG10($O$22)) -> 80.09838884 | J97: =IF('Rating from tested data'!$D$15="Generalized",J$96+50*LOG10($M$22/1000)+70*LOG10($D$9/20),J$96+10*LOG10($M$22)+20*LOG10($O$22)) -> 79.35464795 | K97: =IF('Rating from tested data'!$D$15="Generalized",K$96+50*LOG10($M$22/1000)+70*LOG10($D$9/20),K$96+10*LOG10($M$22)+20*LOG10($O$22)) -> 71.95779296
B99: Find the corresponding sound pressure levels at a distance of 5 ft. for spherical and hemispherical sone calculation
C101: Lp(hemispherical) = Lwcm - 11.5
C102: Lp(spherical) = Lwcm - 14.65
C104: =IF('Rating from tested data'!D13="Hemispherical","Presenting data in Hemispherical Sones","Presenting data in Spherical Sones") -> Presenting data in Hemispherical Sones
B106: Octave Band | C106: 1 | D106: 2 | E106: 3 | F106: 4 | G106: 5 | H106: 6 | I106: 7 | J106: 8
B107: Center Freq., fc (Hz) | C107: 63 | D107: 125 | E107: 250 | F107: 500 | G107: 1000 | H107: 2000 | I107: 4000 | J107: 8000
B108: Lp (dB) | C108: =IF('Rating from tested data'!$D$13="Hemispherical",IF(D97>11.5,D97-11.5,0),IF('Rating from tested data'!$D$13="Spherical",IF(D97>14.65,D97-14.65,0))) -> 69.03780834 | D108: =IF('Rating from tested data'!$D$13="Hemispherical",IF(E97>11.5,E97-11.5,0),IF('Rating from tested data'!$D$13="Spherical",IF(E97>14.65,E97-14.65,0))) -> 69.03780834 | E108: =IF('Rating from tested data'!$D$13="Hemispherical",IF(F97>11.5,F97-11.5,0),IF(F97>14.65,F97-14.65,0)) -> 77.37626988 | F108: =IF('Rating from tested data'!$D$13="Hemispherical",IF(G97>11.5,G97-11.5,0),IF(G97>14.65,G97-14.65,0)) -> 80.6640493 | G108: =IF('Rating from tested data'!$D$13="Hemispherical",IF(H97>11.5,H97-11.5,0),IF(H97>14.65,H97-14.65,0)) -> 69.63562538 | H108: =IF('Rating from tested data'!$D$13="Hemispherical",IF(I97>11.5,I97-11.5,0),IF(I97>14.65,I97-14.65,0)) -> 68.59838884 | I108: =IF('Rating from tested data'!$D$13="Hemispherical",IF(J97>11.5,J97-11.5,0),IF(J97>14.65,J97-14.65,0)) -> 67.85464795 | J108: =IF('Rating from tested data'!$D$13="Hemispherical",IF(K97>11.5,K97-11.5,0),IF(K97>14.65,K97-14.65,0)) -> 60.45779296
B111: =IF('Rating from tested data'!D13="Hemispherical", "Calculate loudness in fan (hemispherical) sones.", "Calculate loudness in spherical sones.") -> Calculate loudness in fan (hemispherical) sones.
C113: Using the loudness index table and interpolation, find the loudness index for each octave band.
B115: Octave Band | C115: 1 | D115: 2 | E115: 3 | F115: 4 | G115: 5 | H115: 6 | I115: 7 | J115: 8
B116: Center Freq., f (Hz) | C116: 63 | D116: 125 | E116: 250 | F116: 500 | G116: 1000 | H116: 2000 | I116: 4000 | J116: 8000
B117: Lp (dB) | C117: =C108 -> 69.03780834 | D117: 69.03780834 | E117: 77.37626988 | F117: 80.6640493 | G117: 69.63562538 | H117: 68.59838884 | I117: 67.85464795 | J117: 60.45779296
B118: Lp¹ (dB) | C118: =INDEX('Loudness Index Table'!$B$7:$J$127,(MATCH(C117,'Loudness Index Table'!$B$7:$B$127,1)-1)+1,1) -> 69 | D118: =INDEX('Loudness Index Table'!$B$7:$J$127,(MATCH(D117,'Loudness Index Table'!$B$7:$B$127,1)-1)+1,1) -> 69 | E118: =INDEX('Loudness Index Table'!$B$7:$J$127,(MATCH(E117,'Loudness Index Table'!$B$7:$B$127,1)-1)+1,1) -> 77 | F118: =INDEX('Loudness Index Table'!$B$7:$J$127,(MATCH(F117,'Loudness Index Table'!$B$7:$B$127,1)-1)+1,1) -> 80 | G118: =INDEX('Loudness Index Table'!$B$7:$J$127,(MATCH(G117,'Loudness Index Table'!$B$7:$B$127,1)-1)+1,1) -> 69 | H118: =INDEX('Loudness Index Table'!$B$7:$J$127,(MATCH(H117,'Loudness Index Table'!$B$7:$B$127,1)-1)+1,1) -> 68 | I118: =INDEX('Loudness Index Table'!$B$7:$J$127,(MATCH(I117,'Loudness Index Table'!$B$7:$B$127,1)-1)+1,1) -> 67 | J118: =INDEX('Loudness Index Table'!$B$7:$J$127,(MATCH(J117,'Loudness Index Table'!$B$7:$B$127,1)-1)+1,1) -> 60
B119: s¹ (sones) | C119: =VLOOKUP(C118,'Loudness Index Table'!$B$7:$J$127,C$115+1) -> 3 | D119: =VLOOKUP(D118,'Loudness Index Table'!$B$7:$J$127,D$115+1) -> 4.7 | E119: =VLOOKUP(E118,'Loudness Index Table'!$B$7:$J$127,E$115+1) -> 9.3 | F119: =VLOOKUP(F118,'Loudness Index Table'!$B$7:$J$127,F$115+1) -> 13.5 | G119: =VLOOKUP(G118,'Loudness Index Table'!$B$7:$J$127,G$115+1) -> 8.3 | H119: =VLOOKUP(H118,'Loudness Index Table'!$B$7:$J$127,H$115+1) -> 9.3 | I119: =VLOOKUP(I118,'Loudness Index Table'!$B$7:$J$127,I$115+1) -> 10.5 | J119: =VLOOKUP(J118,'Loudness Index Table'!$B$7:$J$127,J$115+1) -> 8.3
B120: Lp² (dB) | C120: =INDEX('Loudness Index Table'!$B$7:$J$127,(MATCH(C117,'Loudness Index Table'!$B$7:$B$127,1)-1+1)+1,1) -> 70 | D120: =INDEX('Loudness Index Table'!$B$7:$J$127,(MATCH(D117,'Loudness Index Table'!$B$7:$B$127,1)-1+1)+1,1) -> 70 | E120: =INDEX('Loudness Index Table'!$B$7:$J$127,(MATCH(E117,'Loudness Index Table'!$B$7:$B$127,1)-1+1)+1,1) -> 78 | F120: =INDEX('Loudness Index Table'!$B$7:$J$127,(MATCH(F117,'Loudness Index Table'!$B$7:$B$127,1)-1+1)+1,1) -> 81 | G120: =INDEX('Loudness Index Table'!$B$7:$J$127,(MATCH(G117,'Loudness Index Table'!$B$7:$B$127,1)-1+1)+1,1) -> 70 | H120: =INDEX('Loudness Index Table'!$B$7:$J$127,(MATCH(H117,'Loudness Index Table'!$B$7:$B$127,1)-1+1)+1,1) -> 69 | I120: =INDEX('Loudness Index Table'!$B$7:$J$127,(MATCH(I117,'Loudness Index Table'!$B$7:$B$127,1)-1+1)+1,1) -> 68 | J120: =INDEX('Loudness Index Table'!$B$7:$J$127,(MATCH(J117,'Loudness Index Table'!$B$7:$B$127,1)-1+1)+1,1) -> 61
B121: s² (sones) | C121: =VLOOKUP(C120,'Loudness Index Table'!$B$7:$J$127,C$115+1) -> 3.2 | D121: =VLOOKUP(D120,'Loudness Index Table'!$B$7:$J$127,D$115+1) -> 5 | E121: =VLOOKUP(E120,'Loudness Index Table'!$B$7:$J$127,E$115+1) -> 9.9 | F121: =VLOOKUP(F120,'Loudness Index Table'!$B$7:$J$127,F$115+1) -> 14.4 | G121: =VLOOKUP(G120,'Loudness Index Table'!$B$7:$J$127,G$115+1) -> 8.8 | H121: =VLOOKUP(H120,'Loudness Index Table'!$B$7:$J$127,H$115+1) -> 9.9 | I121: =VLOOKUP(I120,'Loudness Index Table'!$B$7:$J$127,I$115+1) -> 11.1 | J121: =VLOOKUP(J120,'Loudness Index Table'!$B$7:$J$127,J$115+1) -> 8.8
B122: s (sones) | C122: =((C121-C119)/(C120-C118))*(C117-C118)+C119 -> 3.007561669 | D122: =((D121-D119)/(D120-D118))*(D117-D118)+D119 -> 4.711342503 | E122: 9.525761929 | F122: 14.09764437 | G122: 8.617812688 | H122: 9.659033307 | I122: 11.01278877 | J122: 8.52889648
C124: Calculate Total Loudness Index:
C125: S = 0.3·(s1 + s2 +s3 + s4 + s5 + s6 + s7 + s8) + 0.7·smax
B127: S (sones) | C127: =0.3*SUM(C122:J122)+0.7*MAX(C122:J122) -> 30.61660357

Sheet Generalized Example one test pt
A3: Product Information
A5: Company Name: | C5: ABC Company
A6: Trade Name: | C6: Model ABC
A7: Model Number: | C7: ABC 101
A10: Options
A12: Sone Type: | D12: Hemispherical
A13: Data Format: | D13: Full Octave
A14: Sound Power Spectrum: | D14: Generalized
Q17: Increase/decrease speed by 10 rpm
B18: Generalized Sound Spectrum | J18: Example Converted Sound Spectrum
C19: SI Units | G19: IP Units | K19: SI Units | N19: IP Units
B20: Test Speed (N) | C20: 2000 | D20: rpm | J20: Nc = | K20: 1980 | L20: rpm
B21: Impeller Diameter (D) | C21: 463.55 | D21: mm | G21: =C21/25.4 -> 18.25 | H21: in. | J21: Dc = | K21: 463.55 | L21: mm | N21: =K21/25.4 -> 18.25 | O21: in.
B22: Airflow (Q) | C22: 4.47 | D22: m3/s | G22: =C22*2119.7 -> 9475.059 | H22: cfm | J22: Qc = | K22: =C22*(K20/C20)*(K21/C21)^3 -> 4.4253 | L22: m3/s | N22: =K22*2119.7 -> 9380.30841 | O22: cfm
B23: Total Pressure (Pt) | C23: 0 | D23: Pa | G23: =C23/248.34 -> 0 | H23: in. wg | J23: Ptc = | K23: =C23*(K20/C20)^2*(K21/C21)^2 -> 0 | L23: Pa | N23: =K23/248.34 -> 0 | O23: in. wg
B24: Number of Blades (NB) | C24: 7 | J24: NB = | K24: 7
B25: Blade pass frequency (fbp) | C25: =C20*C24/60 -> 233.3333333 | D25: Hz | J25: fbpc = | K25: =K20*K24/60 -> 231 | L25: Hz
V26: AMCA Band | W26: Center Frequency | X26: Upper Frequency | Y26: Lower Frequency
B27: Band | C27: Location of fbp | D27: Hz | E27: Test LW | G27: X | H27: LWG | J27: Band | K27: Hz | L27: Location of fbp | M27: Xc | N27: Interpolated LWGc | O27: BPF LWGc | P27: Interpolation Index | Q27: LWGc | R27: LWc | W27: f (Hz) | X27: f (Hz) | Y27: f (Hz)
F28: Extrapolated point: | G28: 0 | H28: =H29 -> 66.1321991
B29: 1 | C29: =IF(AND($C$25>X29,$C$25<=Y29),"Yes","No") -> No | D29: 63 | E29: 78.4 | G29: =10*LOG(D29/$C$20)+20 -> 4.983105538 | H29: =E29-50*LOG($C$20/1000)-70*LOG($C$21/508) -> 66.1321991 | J29: 1 | K29: 63 | L29: =IF(AND($K$25>=X29,$K$25<=Y29),"Yes","No") -> No | M29: =10*LOG(K29/$K$20)+20 -> 5.026753592 | N29: =(M29-INDEX(G$28:G$37,$P29))/(INDEX(G$28:G$37,$P29+1)-INDEX(G$28:G$37,$P29))*(INDEX(H$28:H$37,$P29+1)-INDEX(H$28:H$37,$P29))+INDEX(H$28:H$37,$P29) -> 66.14246683 | O29: =IF(L29="Yes",$H$38,"") ->  | P29: =MATCH(M29,G$28:G$37,1) -> 2 | Q29: =MAX(N29,O29) -> 66.14246683 | R29: =Q29+50*LOG($K$20/1000)+70*LOG($K$21/508) -> 78.19202746 | V29: 1 | W29: 63 | X29: 45 | Y29: 90
B30: 2 | C30: =IF(AND($C$25>X30,$C$25<=Y30),"Yes","No") -> No | D30: 125 | E30: 79.1 | G30: =10*LOG(D30/$C$20)+20 -> 7.958800173 | H30: =E30-50*LOG($C$20/1000)-70*LOG($C$21/508) -> 66.8321991 | J30: 2 | K30: 125 | L30: =IF(AND($K$25>=X30,$K$25<=Y30),"Yes","No") -> No | M30: 8.002448227 | N30: =(M30-INDEX(G$28:G$37,$P30))/(INDEX(G$28:G$37,$P30+1)-INDEX(G$28:G$37,$P30))*(INDEX(H$28:H$37,$P30+1)-INDEX(H$28:H$37,$P30))+INDEX(H$28:H$37,$P30) -> 66.93224613 | O30: =IF(L30="Yes",$H$38,"") ->  | P30: =MATCH(M30,G$28:G$37,1) -> 3 | Q30: =MAX(N30,O30) -> 66.93224613 | R30: =Q30+50*LOG($K$20/1000)+70*LOG($K$21/508) -> 78.98180676 | V30: 2 | W30: 125 | X30: 90 | Y30: 180
B31: 3 | C31: =IF(AND($C$25>X31,$C$25<=Y31),"Yes","No") -> Yes | D31: 250 | E31: 86 | G31: =10*LOG(D31/$C$20)+20 -> 10.96910013 | H31: =E31-50*LOG($C$20/1000)-70*LOG($C$21/508) -> 73.7321991 | J31: 3 | K31: 250 | L31: Yes | M31: 11.01274818 | N31: =(M31-INDEX(G$28:G$37,$P31))/(INDEX(G$28:G$37,$P31+1)-INDEX(G$28:G$37,$P31))*(INDEX(H$28:H$37,$P31+1)-INDEX(H$28:H$37,$P31))+INDEX(H$28:H$37,$P31) -> 73.68435052 | O31: 73.7321991 | P31: =MATCH(M31,G$28:G$37,1) -> 4 | Q31: =MAX(N31,O31) -> 73.7321991 | R31: 85.78175973 | V31: 3 | W31: 250 | X31: 180 | Y31: 355
B32: 4 | C32: =IF(AND($C$25>X32,$C$25<=Y32),"Yes","No") -> No | D32: 500 | E32: 82.7 | G32: =10*LOG(D32/$C$20)+20 -> 13.97940009 | H32: =E32-50*LOG($C$20/1000)-70*LOG($C$21/508) -> 70.4321991 | J32: 4 | K32: 500 | L32: No | M32: 14.02304814 | N32: =(M32-INDEX(G$28:G$37,$P32))/(INDEX(G$28:G$37,$P32+1)-INDEX(G$28:G$37,$P32))*(INDEX(H$28:H$37,$P32+1)-INDEX(H$28:H$37,$P32))+INDEX(H$28:H$37,$P32) -> 70.39740013 | P32: =MATCH(M32,G$28:G$37,1) -> 5 | Q32: =MAX(N32,O32) -> 70.39740013 | R32: 82.44696076 | V32: 4 | W32: 500 | X32: 355 | Y32: 710
B33: 5 | C33: =IF(AND($C$25>X33,$C$25<=Y33),"Yes","No") -> No | D33: 1000 | E33: 80.3 | G33: =10*LOG(D33/$C$20)+20 -> 16.98970004 | H33: =E33-50*LOG($C$20/1000)-70*LOG($C$21/508) -> 68.0321991 | J33: 5 | K33: 1000 | L33: No | M33: 17.0333481 | N33: =(M33-INDEX(G$28:G$37,$P33))/(INDEX(G$28:G$37,$P33+1)-INDEX(G$28:G$37,$P33))*(INDEX(H$28:H$37,$P33+1)-INDEX(H$28:H$37,$P33))+INDEX(H$28:H$37,$P33) -> 68.01479961 | P33: =MATCH(M33,G$28:G$37,1) -> 6 | Q33: =MAX(N33,O33) -> 68.01479961 | R33: 80.06436025 | V33: 5 | W33: 1000 | X33: 710 | Y33: 1400
B34: 6 | C34: =IF(AND($C$25>X34,$C$25<=Y34),"Yes","No") -> No | D34: 2000 | E34: 79.1 | G34: =10*LOG(D34/$C$20)+20 -> 20 | H34: =E34-50*LOG($C$20/1000)-70*LOG($C$21/508) -> 66.8321991 | J34: 6 | K34: 2000 | L34: No | M34: 20.04364805 | N34: =(M34-INDEX(G$28:G$37,$P34))/(INDEX(G$28:G$37,$P34+1)-INDEX(G$28:G$37,$P34))*(INDEX(H$28:H$37,$P34+1)-INDEX(H$28:H$37,$P34))+INDEX(H$28:H$37,$P34) -> 66.76695103 | P34: =MATCH(M34,G$28:G$37,1) -> 7 | Q34: =MAX(N34,O34) -> 66.76695103 | R34: 78.81651167 | V34: 6 | W34: 2000 | X34: 1400 | Y34: 2800
B35: 7 | C35: =IF(AND($C$25>X35,$C$25<=Y35),"Yes","No") -> No | D35: 4000 | E35: 74.6 | G35: =10*LOG(D35/$C$20)+20 -> 23.01029996 | H35: =E35-50*LOG($C$20/1000)-70*LOG($C$21/508) -> 62.3321991 | J35: 7 | K35: 4000 | L35: No | M35: 23.05394801 | N35: =(M35-INDEX(G$28:G$37,$P35))/(INDEX(G$28:G$37,$P35+1)-INDEX(G$28:G$37,$P35))*(INDEX(H$28:H$37,$P35+1)-INDEX(H$28:H$37,$P35))+INDEX(H$28:H$37,$P35) -> 62.22490228 | P35: =MATCH(M35,G$28:G$37,1) -> 8 | Q35: =MAX(N35,O35) -> 62.22490228 | R35: 74.27446291 | V35: 7 | W35: 4000 | X35: 2800 | Y35: 5600
B36: 8 | C36: =IF(AND($C$25>X36,$C$25<=Y36),"Yes","No") -> No | D36: 8000 | E36: 67.2 | G36: =10*LOG(D36/$C$20)+20 -> 26.02059991 | H36: =E36-50*LOG($C$20/1000)-70*LOG($C$21/508) -> 54.9321991 | J36: 8 | K36: 8000 | L36: No | M36: 26.06424797 | N36: =(M36-INDEX(G$28:G$37,$P36))/(INDEX(G$28:G$37,$P36+1)-INDEX(G$28:G$37,$P36))*(INDEX(H$28:H$37,$P36+1)-INDEX(H$28:H$37,$P36))+INDEX(H$28:H$37,$P36) -> 54.82490228 | P36: =MATCH(M36,G$28:G$37,1) -> 9 | Q36: =MAX(N36,O36) -> 54.82490228 | R36: 66.87446291 | V36: 8 | W36: 8000 | X36: 5600 | Y36: 11200
F37: Extrapolated point: | G37: 40 | H37: =(G37-G35)/(G36-G35)*(H36-H35)+H35 -> 20.56766329
F38: ="+ Blade pass frequency:" -> + Blade pass frequency: | G38: =INDEX(G28:G37,MATCH("Yes",C28:C37,0)) -> 10.96910013 | H38: =INDEX(H28:H37,MATCH("Yes",C28:C37,0)) -> 73.7321991
Q42: Markers for Plot
Q43: X | R43: LWK
P44: Lwg at Blade Pass | Q44: =G38-3 -> 7.96910013 | R44: =H38 -> 73.7321991
Q45: =G38 -> 10.96910013 | R45: =H38 -> 73.7321991
Q46: =G38+3 -> 13.96910013 | R46: =H38 -> 73.7321991
P48: Blade Pass | Q48: =G38 -> 10.96910013 | R48: =H38-2 -> 71.7321991
Q49: =G38 -> 10.96910013 | R49: =H38-15 -> 58.7321991
P51: Blade Pass | Q51: =INDEX(M28:M37,MATCH("Yes",L28:L37,0)) -> 11.01274818 | R51: =INDEX(Q28:Q37,MATCH("Yes",L28:L37,0))-2 -> 71.7321991
Q52: =Q51 -> 11.01274818 | R52: =R51-17 -> 54.7321991

Sheet Loudness Index Table (hidden)
B2: Loudness Index Table
C4: Octave Band / Center Frequency (Hz)
C5: 1 | D5: 2 | E5: 3 | F5: 4 | G5: 5 | H5: 6 | I5: 7 | J5: 8
B6: Lp (dB) | C6: 63 | D6: 125 | E6: 250 | F6: 500 | G6: 1000 | H6: 2000 | I6: 4000 | J6: 8000
B7: 0
B8: 1
B9: 2
B10: 3
B11: 4
B12: 5
B13: 6
B14: 7
B15: 8
B16: 9 | J16: 0.1
B17: 10 | J17: 0.14
B18: 11 | J18: 0.18
B19: 12 | I19: 0.1 | J19: 0.22
B20: 13 | I20: 0.14 | J20: 0.26
B21: 14 | I21: 0.18 | J21: 0.3
B22: 15 | H22: 0.1 | I22: 0.22 | J22: 0.35
B23: 16 | H23: 0.14 | I23: 0.26 | J23: 0.4
B24: 17 | H24: 0.18 | I24: 0.3 | J24: 0.45
B25: 18 | G25: 0.1 | H25: 0.22 | I25: 0.35 | J25: 0.5
B26: 19 | G26: 0.14 | H26: 0.26 | I26: 0.4 | J26: 0.55
B27: 20 | G27: 0.18 | H27: 0.3 | I27: 0.45 | J27: 0.61
B28: 21 | G28: 0.22 | H28: 0.35 | I28: 0.5 | J28: 0.67
B29: 22 | G29: 0.26 | H29: 0.4 | I29: 0.55 | J29: 0.73
B30: 23 | F30: 0.12 | G30: 0.3 | H30: 0.45 | I30: 0.61 | J30: 0.8
B31: 24 | F31: 0.16 | G31: 0.35 | H31: 0.5 | I31: 0.67 | J31: 0.87
B32: 25 | F32: 0.21 | G32: 0.4 | H32: 0.55 | I32: 0.73 | J32: 0.94
B33: 26 | F33: 0.26 | G33: 0.45 | H33: 0.61 | I33: 0.8 | J33: 1.02
B34: 27 | F34: 0.31 | G34: 0.5 | H34: 0.67 | I34: 0.87 | J34: 1.1
B35: 28 | F35: 0.37 | G35: 0.55 | H35: 0.73 | I35: 0.94 | J35: 1.18
B36: 29 | E36: 0.12 | F36: 0.43 | G36: 0.61 | H36: 0.8 | I36: 1.02 | J36: 1.27
B37: 30 | E37: 0.16 | F37: 0.49 | G37: 0.67 | H37: 0.87 | I37: 1.1 | J37: 1.35
B38: 31 | E38: 0.21 | F38: 0.55 | G38: 0.73 | H38: 0.94 | I38: 1.18 | J38: 1.44
B39: 32 | E39: 0.26 | F39: 0.61 | G39: 0.8 | H39: 1.02 | I39: 1.27 | J39: 1.54
B40: 33 | E40: 0.31 | F40: 0.67 | G40: 0.87 | H40: 1.1 | I40: 1.35 | J40: 1.64
B41: 34 | E41: 0.37 | F41: 0.73 | G41: 0.94 | H41: 1.18 | I41: 1.44 | J41: 1.75
B42: 35 | D42: 0.12 | E42: 0.43 | F42: 0.8 | G42: 1.02 | H42: 1.27 | I42: 1.54 | J42: 1.87
B43: 36 | D43: 0.16 | E43: 0.49 | F43: 0.87 | G43: 1.1 | H43: 1.35 | I43: 1.64 | J43: 1.99
B44: 37 | D44: 0.21 | E44: 0.55 | F44: 0.94 | G44: 1.18 | H44: 1.44 | I44: 1.75 | J44: 2.11
B45: 38 | D45: 0.26 | E45: 0.62 | F45: 1.02 | G45: 1.27 | H45: 1.54 | I45: 1.87 | J45: 2.24
B46: 39 | D46: 0.31 | E46: 0.69 | F46: 1.1 | G46: 1.35 | H46: 1.64 | I46: 1.99 | J46: 2.38
B47: 40 | D47: 0.37 | E47: 0.77 | F47: 1.18 | G47: 1.44 | H47: 1.75 | I47: 2.11 | J47: 2.53
B48: 41 | C48: 0.12 | D48: 0.43 | E48: 0.85 | F48: 1.27 | G48: 1.54 | H48: 1.87 | I48: 2.24 | J48: 2.68
B49: 42 | C49: 0.16 | D49: 0.49 | E49: 0.94 | F49: 1.35 | G49: 1.64 | H49: 1.99 | I49: 2.38 | J49: 2.84
B50: 43 | C50: 0.21 | D50: 0.55 | E50: 1.04 | F50: 1.44 | G50: 1.75 | H50: 2.11 | I50: 2.53 | J50: 3
B51: 44 | C51: 0.26 | D51: 0.62 | E51: 1.13 | F51: 1.54 | G51: 1.87 | H51: 2.24 | I51: 2.68 | J51: 3.2
B52: 45 | C52: 0.31 | D52: 0.69 | E52: 1.23 | F52: 1.64 | G52: 1.99 | H52: 2.38 | I52: 2.84 | J52: 3.4
B53: 46 | C53: 0.37 | D53: 0.77 | E53: 1.33 | F53: 1.75 | G53: 2.11 | H53: 2.53 | I53: 3 | J53: 3.6
B54: 47 | C54: 0.43 | D54: 0.85 | E54: 1.44 | F54: 1.87 | G54: 2.24 | H54: 2.68 | I54: 3.2 | J54: 3.8
B55: 48 | C55: 0.49 | D55: 0.94 | E55: 1.56 | F55: 1.99 | G55: 2.38 | H55: 2.84 | I55: 3.4 | J55: 4.1
B56: 49 | C56: 0.55 | D56: 1.04 | E56: 1.68 | F56: 2.11 | G56: 2.53 | H56: 3 | I56: 3.6 | J56: 4.3
B57: 50 | C57: 0.62 | D57: 1.13 | E57: 1.82 | F57: 2.24 | G57: 2.68 | H57: 3.2 | I57: 3.8 | J57: 4.3
B58: 51 | C58: 0.69 | D58: 1.23 | E58: 1.96 | F58: 2.38 | G58: 2.84 | H58: 3.4 | I58: 4.1 | J58: 4.9
B59: 52 | C59: 0.77 | D59: 1.33 | E59: 2.11 | F59: 2.53 | G59: 3 | H59: 3.6 | I59: 4.3 | J59: 5.2
B60: 53 | C60: 0.85 | D60: 1.44 | E60: 2.24 | F60: 2.68 | G60: 3.2 | H60: 3.8 | I60: 4.6 | J60: 5.5
B61: 54 | C61: 0.94 | D61: 1.56 | E61: 2.38 | F61: 2.84 | G61: 3.4 | H61: 4.1 | I61: 4.9 | J61: 5.8
B62: 55 | C62: 1.04 | D62: 1.68 | E62: 2.53 | F62: 3 | G62: 3.6 | H62: 4.3 | I62: 5.2 | J62: 6.2
B63: 56 | C63: 1.13 | D63: 1.82 | E63: 2.68 | F63: 3.2 | G63: 3.8 | H63: 4.6 | I63: 5.5 | J63: 6.6
B64: 57 | C64: 1.23 | D64: 1.96 | E64: 2.84 | F64: 3.4 | G64: 4.1 | H64: 4.9 | I64: 5.8 | J64: 7
B65: 58 | C65: 1.33 | D65: 2.11 | E65: 3 | F65: 3.6 | G65: 4.3 | H65: 5.2 | I65: 6.2 | J65: 7.4
B66: 59 | C66: 1.44 | D66: 2.27 | E66: 3.2 | F66: 3.8 | G66: 4.6 | H66: 5.5 | I66: 6.6 | J66: 7.8
B67: 60 | C67: 1.56 | D67: 2.44 | E67: 3.4 | F67: 4.1 | G67: 4.9 | H67: 5.8 | I67: 7 | J67: 8.3
B68: 61 | C68: 1.68 | D68: 2.61 | E68: 3.6 | F68: 4.3 | G68: 5.2 | H68: 6.2 | I68: 7.4 | J68: 8.8
B69: 62 | C69: 1.82 | D69: 2.81 | E69: 3.8 | F69: 4.6 | G69: 5.5 | H69: 6.6 | I69: 7.8 | J69: 9.3
B70: 63 | C70: 1.96 | D70: 3 | E70: 4.1 | F70: 4.9 | G70: 5.8 | H70: 7 | I70: 8.3 | J70: 9.9
B71: 64 | C71: 2.11 | D71: 3.2 | E71: 4.3 | F71: 5.2 | G71: 6.2 | H71: 7.4 | I71: 8.8 | J71: 10.5
B72: 65 | C72: 2.27 | D72: 3.5 | E72: 4.6 | F72: 5.5 | G72: 6.6 | H72: 7.8 | I72: 9.3 | J72: 11.1
B73: 66 | C73: 2.44 | D73: 3.7 | E73: 4.9 | F73: 5.8 | G73: 7 | H73: 8.3 | I73: 9.9 | J73: 11.8
B74: 67 | C74: 2.61 | D74: 4 | E74: 5.2 | F74: 6.2 | G74: 7.4 | H74: 8.8 | I74: 10.5 | J74: 12.6
B75: 68 | C75: 2.81 | D75: 4.3 | E75: 5.5 | F75: 6.6 | G75: 7.8 | H75: 9.3 | I75: 11.1 | J75: 13.5
B76: 69 | C76: 3 | D76: 4.7 | E76: 5.8 | F76: 7 | G76: 8.3 | H76: 9.9 | I76: 11.8 | J76: 14.4
B77: 70 | C77: 3.2 | D77: 5 | E77: 6.2 | F77: 7.4 | G77: 8.8 | H77: 10.5 | I77: 12.6 | J77: 15.3
B78: 71 | C78: 3.5 | D78: 5.4 | E78: 6.6 | F78: 7.8 | G78: 9.3 | H78: 11.1 | I78: 13.5 | J78: 16.4
B79: 72 | C79: 3.7 | D79: 5.8 | E79: 7 | F79: 8.3 | G79: 9.9 | H79: 11.8 | I79: 14.4 | J79: 17.5
B80: 73 | C80: 4 | D80: 6.2 | E80: 7.4 | F80: 8.8 | G80: 10.5 | H80: 12.6 | I80: 15.3 | J80: 18.7
B81: 74 | C81: 4.3 | D81: 6.6 | E81: 7.8 | F81: 9.3 | G81: 11.1 | H81: 13.5 | I81: 16.4 | J81: 20
B82: 75 | C82: 4.7 | D82: 7 | E82: 8.3 | F82: 9.9 | G82: 11.8 | H82: 14.4 | I82: 17.5 | J82: 21.4
B83: 76 | C83: 5 | D83: 7.4 | E83: 8.8 | F83: 10.5 | G83: 12.6 | H83: 15.3 | I83: 18.7 | J83: 23
B84: 77 | C84: 5.4 | D84: 7.8 | E84: 9.3 | F84: 11.1 | G84: 13.5 | H84: 16.4 | I84: 20 | J84: 24.7
B85: 78 | C85: 5.8 | D85: 8.3 | E85: 9.9 | F85: 11.8 | G85: 14.4 | H85: 17.5 | I85: 21.4 | J85: 26.5
B86: 79 | C86: 6.2 | D86: 8.8 | E86: 10.5 | F86: 12.6 | G86: 15.3 | H86: 18.7 | I86: 23 | J86: 28.5
B87: 80 | C87: 6.7 | D87: 9.3 | E87: 11.1 | F87: 13.5 | G87: 16.4 | H87: 20 | I87: 24.7 | J87: 30.5
B88: 81 | C88: 7.2 | D88: 9.9 | E88: 11.8 | F88: 14.4 | G88: 17.5 | H88: 21.4 | I88: 26.5 | J88: 33
B89: 82 | C89: 7.7 | D89: 10.5 | E89: 12.6 | F89: 15.3 | G89: 18.7 | H89: 23 | I89: 28.5 | J89: 35.3
B90: 83 | C90: 8.2 | D90: 11.1 | E90: 13.5 | F90: 16.4 | G90: 20 | H90: 24.7 | I90: 30.5 | J90: 38
B91: 84 | C91: 8.8 | D91: 11.8 | E91: 14.4 | F91: 17.5 | G91: 21.4 | H91: 26.5 | I91: 33 | J91: 41
B92: 85 | C92: 9.4 | D92: 12.6 | E92: 15.3 | F92: 18.7 | G92: 23 | H92: 28.5 | I92: 35.3 | J92: 44
B93: 86 | C93: 10 | D93: 13.5 | E93: 16.4 | F93: 20 | G93: 24.7 | H93: 30.5 | I93: 38 | J93: 48
B94: 87 | C94: 10.8 | D94: 14.4 | E94: 17.5 | F94: 21.4 | G94: 26.5 | H94: 33 | I94: 41 | J94: 52
B95: 88 | C95: 11.7 | D95: 15.3 | E95: 18.7 | F95: 23 | G95: 28.5 | H95: 35.3 | I95: 44 | J95: 56
B96: 89 | C96: 12.6 | D96: 16.4 | E96: 20 | F96: 24.7 | G96: 30.5 | H96: 38 | I96: 48 | J96: 61
B97: 90 | C97: 13.6 | D97: 17.5 | E97: 21.4 | F97: 26.5 | G97: 33 | H97: 41 | I97: 52 | J97: 66
B98: 91 | C98: 14.7 | D98: 18.7 | E98: 23 | F98: 28.5 | G98: 35.3 | H98: 44 | I98: 56 | J98: 71
B99: 92 | C99: 16 | D99: 20 | E99: 24.7 | F99: 30.5 | G99: 38 | H99: 48 | I99: 64 | J99: 77
B100: 93 | C100: 17.3 | D100: 21.4 | E100: 26.5 | F100: 33 | G100: 41 | H100: 52 | I100: 66 | J100: 83
B101: 94 | C101: 18.7 | D101: 23 | E101: 28.5 | F101: 35.3 | G101: 44 | H101: 56 | I101: 71 | J101: 90
B102: 95 | C102: 20 | D102: 24.7 | E102: 30.5 | F102: 38 | G102: 48 | H102: 61 | I102: 77 | J102: 97
B103: 96 | C103: 21.4 | D103: 26.5 | E103: 33 | F103: 41 | G103: 52 | H103: 66 | I103: 83 | J103: 105
B104: 97 | C104: 23 | D104: 28.5 | E104: 35.3 | F104: 44 | G104: 56 | H104: 71 | I104: 90 | J104: 113
B105: 98 | C105: 24.7 | D105: 30.5 | E105: 38 | F105: 48 | G105: 61 | H105: 77 | I105: 97 | J105: 121
B106: 99 | C106: 26.5 | D106: 33 | E106: 41 | F106: 52 | G106: 66 | H106: 83 | I106: 105 | J106: 130
B107: 100 | C107: 28.5 | D107: 35.3 | E107: 44 | F107: 56 | G107: 71 | H107: 90 | I107: 113 | J107: 139
B108: 101 | C108: 30.5 | D108: 38 | E108: 48 | F108: 61 | G108: 77 | H108: 97 | I108: 121 | J108: 149
B109: 102 | C109: 33 | D109: 41 | E109: 52 | F109: 66 | G109: 83 | H109: 105 | I109: 130 | J109: 160
B110: 103 | C110: 35.3 | D110: 44 | E110: 56 | F110: 71 | G110: 90 | H110: 113 | I110: 139 | J110: 171
B111: 104 | C111: 38 | D111: 48 | E111: 61 | F111: 77 | G111: 97 | H111: 121 | I111: 149 | J111: 184
B112: 105 | C112: 41 | D112: 52 | E112: 66 | F112: 83 | G112: 105 | H112: 130 | I112: 160 | J112: 197
B113: 106 | C113: 44 | D113: 56 | E113: 71 | F113: 90 | G113: 113 | H113: 139 | I113: 171 | J113: 211
B114: 107 | C114: 48 | D114: 61 | E114: 77 | F114: 97 | G114: 121 | H114: 149 | I114: 184 | J114: 226
B115: 108 | C115: 52 | D115: 66 | E115: 83 | F115: 105 | G115: 130 | H115: 160 | I115: 197 | J115: 242
B116: 109 | C116: 56 | D116: 71 | E116: 90 | F116: 113 | G116: 139 | H116: 171 | I116: 211 | J116: 260
B117: 110 | C117: 61 | D117: 77 | E117: 97 | F117: 121 | G117: 149 | H117: 184 | I117: 226 | J117: 278
B118: 111 | C118: 66 | D118: 83 | E118: 105 | F118: 130 | G118: 160 | H118: 197 | I118: 242 | J118: 298
B119: 112 | C119: 71 | D119: 90 | E119: 113 | F119: 139 | G119: 171 | H119: 211 | I119: 260 | J119: 320
B120: 113 | C120: 77 | D120: 97 | E120: 121 | F120: 149 | G120: 184 | H120: 226 | I120: 278
B121: 114 | C121: 83 | D121: 105 | E121: 130 | F121: 160 | G121: 197 | H121: 242 | I121: 298
B122: 115 | C122: 90 | D122: 113 | E122: 139 | F122: 171 | G122: 211 | H122: 260 | I122: 320
B123: 116 | C123: 97 | D123: 121 | E123: 149 | F123: 184 | G123: 226 | H123: 278
B124: 117 | C124: 105 | D124: 130 | E124: 160 | F124: 197 | G124: 242 | H124: 298
B125: 118 | C125: 113 | D125: 139 | E125: 171 | F125: 211 | G125: 260 | H125: 320
B126: 119 | C126: 121 | D126: 149 | E126: 184 | F126: 226 | G126: 278
B127: 120 | C127: 130 | D127: 160 | E127: 197 | F127: 242 | G127: 298
